fUST/lending_fUST_20250208
["ID","MTS","AMOUNT","RATE_DAILY","PERIOD"]
[352224466,1739008240013,-500.0,0.00011231,2]
[352224467,1739008240022,-280.35,0.00011231,2]
[352224468,1739008240031,-1597.94,0.00011231,2]
[352224469,1739008240040,-1597.94,0.00011231,2]
[352224470,1739008240049,-1597.94,0.00011231,2]
[352224471,1739008240059,-1597.94,0.00011231,2]
[352224472,1739008240068,-1597.94,0.00011231,2]
[352224473,1739008240077,-1597.94,0.00011231,2]
[352224474,1739008240087,-500.0,0.00011232,2]
[352224475,1739008240096,-500.0,0.00011232,2]
[352224476,1739008240104,-621.5,0.00011232,2]
[352224477,1739008240114,-500.0,0.00011232,2]
[352224478,1739008240123,-500.0,0.00011232,2]
[352224479,1739008240132,-500.0,0.00011232,2]
[352224480,1739008240141,-625.78,0.00011232,2]
[352224481,1739008240150,-500.0,0.00011232,2]
[352224482,1739008240159,-500.0,0.00011232,2]
[352224483,1739008240169,-471.21177192,0.00011232,2]
[352224485,1739008240178,-500.0,0.00011232,2]
[352224486,1739008240188,-500.0,0.00011232,2]
[352224487,1739008240197,-500.0,0.00011232,2]
[352224488,1739008240206,-500.0,0.00011232,2]
[352224489,1739008240216,-500.0,0.00011232,2]
[352224490,1739008240227,-500.0,0.00011232,2]
[352224491,1739008240240,-500.0,0.00011232,2]
[352224492,1739008240249,-500.0,0.00011232,2]
[352224493,1739008240258,-500.0,0.00011232,2]
[352224494,1739008240268,-500.0,0.00011232,2]
[352224495,1739008240277,-500.0,0.00011232,2]
[352224496,1739008240286,-500.0,0.00011232,2]
[352224497,1739008240296,-621.13187448,0.00011232,2]
[352224498,1739008240305,-500.0,0.00011232,2]
[352224499,1739008240315,-500.0,0.00011232,2]
[352224500,1739008240325,-500.0,0.00011232,2]
[352224501,1739008240334,-500.0,0.00011232,2]
[352224502,1739008240343,-500.0,0.00011232,2]
[352224503,1739008240353,-500.0,0.00011232,2]
[352224504,1739008240362,-439.80632446,0.00011232,2]
[352224505,1739008240371,-500.0,0.00011232,2]
[352224506,1739008240381,-417.9,0.00011232,2]
[352224507,1739008240390,-500.0,0.00011232,2]
[352224508,1739008240399,-500.0,0.00011232,2]
[352224509,1739008240408,-508.44,0.00011232,2]
[352224510,1739008240427,-500.0,0.00011232,2]
[352224511,1739008240436,-500.0,0.00011232,2]
[352224512,1739008240453,-500.0,0.00011232,2]
[352224513,1739008240463,-500.0,0.00011232,2]
[352224514,1739008240472,-500.0,0.00011232,2]
[352224515,1739008240483,-500.0,0.00011232,2]
[352224516,1739008240492,-871.2,0.00011232,2]
[352224517,1739008240501,-500.0,0.00011232,2]
[352224518,1739008240510,-500.0,0.00011232,2]
[352224519,1739008240519,-500.0,0.00011232,2]
[352224520,1739008240529,-500.0,0.00011232,2]
[352224521,1739008240538,-500.0,0.00011232,2]
[352224522,1739008240548,-500.0,0.00011232,2]
[352224523,1739008240558,-713.53,0.00011232,2]
[352224524,1739008240568,-828.86,0.00011232,2]
[352224525,1739008240578,-609.74,0.00011232,2]
[352224526,1739008240589,-500.0,0.00011232,2]
[352224527,1739008240598,-500.0,0.00011232,2]
[352224528,1739008240610,-500.0,0.00011232,2]
[352224529,1739008240622,-500.0,0.00011232,2]
[352224530,1739008240631,-500.0,0.00011232,2]
[352224531,1739008240641,-500.0,0.00011232,2]
[352224532,1739008240651,-500.0,0.00011232,2]
[352224533,1739008240661,-500.0,0.00011232,2]
[352224534,1739008240672,-500.0,0.00011232,2]
[352224535,1739008240681,-500.0,0.00011232,2]
[352224536,1739008240694,-214.49,0.00011232,2]
[352224537,1739008240703,-1113.51,0.00011232,2]
[352224538,1739008240713,-1455.41,0.00011232,2]
[352224539,1739008240722,-500.0,0.00011232,2]
[352224540,1739008240731,-500.0,0.00011232,2]
[352224541,1739008240743,-697.95,0.00011232,2]
[352224542,1739008240757,-1497.93,0.00011232,2]
[352224543,1739008240771,-500.0,0.00011232,2]
[352224544,1739008240785,-500.0,0.00011232,2]
[352224545,1739008240796,-500.0,0.00011232,2]
[352224546,1739008240810,-500.0,0.00011232,2]
[352224547,1739008240823,-500.0,0.00011232,2]
[352224548,1739008240836,-176.82274771,0.00011232,2]
[352224549,1739008240850,-747.14,0.00011232,2]
[352224550,1739008240862,-500.0,0.00011232,2]
[352224551,1739008240877,-500.0,0.00011232,2]
[352224552,1739008240893,-500.0,0.00011232,2]
[352224553,1739008240905,-500.0,0.00011232,2]
[352224554,1739008240918,-500.0,0.00011232,2]
[352224555,1739008240931,-500.0,0.00011232,2]
[352224556,1739008240944,-1703.07,0.00011232,2]
[352224557,1739008240958,-500.0,0.00011232,2]
[352224558,1739008240969,-500.0,0.00011232,2]
[352224559,1739008240981,-500.0,0.00011232,2]
[352224560,1739008240991,-502.83508631,0.00011232,2]
[352224561,1739008241003,-1140.65,0.00011232,2]
[352224562,1739008241015,-500.0,0.00011232,2]
[352224563,1739008241028,-500.0,0.00011232,2]
[352224564,1739008241040,-500.0,0.00011232,2]
[352224565,1739008241056,-500.0,0.00011232,2]
[352224566,1739008241071,-500.0,0.00011232,2]
[352224567,1739008241084,-500.0,0.00011232,2]
[352224568,1739008241097,-500.0,0.00011232,2]
[352224569,1739008241108,-500.0,0.00011232,2]
[352224570,1739008241118,-570.23,0.00011232,2]
[352224571,1739008241129,-500.0,0.00011232,2]
[352224572,1739008241142,-1845.77,0.00011232,2]
[352224573,1739008241157,-500.0,0.00011232,2]
[352224574,1739008241170,-731.19,0.00011232,2]
[352224575,1739008241180,-500.0,0.00011232,2]
[352224576,1739008241193,-776.22,0.00011232,2]
[352224577,1739008241203,-500.0,0.00011232,2]
[352224578,1739008241216,-701.7,0.00011232,2]
[352224579,1739008241227,-500.0,0.00011232,2]
[352224580,1739008241238,-2163.76,0.00011232,2]
[352224581,1739008241248,-500.0,0.00011232,2]
[352224582,1739008241259,-500.0,0.00011232,2]
[352224583,1739008241270,-500.0,0.00011232,2]
[352224584,1739008241284,-500.0,0.00011232,2]
[352224585,1739008241295,-1641.21,0.00011232,2]
[352224586,1739008241308,-500.0,0.00011232,2]
[352224587,1739008241320,-571.68,0.00011232,2]
[352224588,1739008241331,-500.0,0.00011232,2]
[352224589,1739008241343,-3235.64,0.00011232,2]
[352224590,1739008241354,-1371.9,0.00011232,2]
[352224591,1739008241365,-835.5,0.00011232,2]
[352224592,1739008241376,-500.0,0.00011232,2]
[352224593,1739008241387,-500.0,0.00011232,2]
[352224594,1739008241398,-3348.34,0.00011232,2]
[352224595,1739008241410,-500.0,0.00011232,2]
[352224596,1739008241421,-18903.61,0.00011232,2]
[352224597,1739008241432,-500.0,0.00011232,2]
[352224598,1739008241443,-3475.79,0.00011232,2]
[352224599,1739008241455,-782.47,0.00011232,2]
[352224600,1739008241466,-500.0,0.00011232,2]
[352224601,1739008241478,-500.0,0.00011232,2]
[352224602,1739008241489,-500.0,0.00011232,2]
[352224603,1739008241500,-1156.73,0.00011232,2]
[352224604,1739008241511,-500.0,0.00011232,2]
[352224605,1739008241523,-500.0,0.00011232,2]
[352224606,1739008241535,-500.0,0.00011232,2]
[352224607,1739008241547,-500.0,0.00011232,2]
[352224608,1739008241559,-500.0,0.00011232,2]
[352224609,1739008241570,-500.0,0.00011232,2]
[352224610,1739008241581,-500.0,0.00011232,2]
[352224611,1739008241592,-500.0,0.00011232,2]
[352224612,1739008241603,-1381.01,0.00011232,2]
[352224613,1739008241614,-500.0,0.00011232,2]
[352224614,1739008241627,-500.0,0.00011232,2]
[352224615,1739008241637,-500.0,0.00011232,2]
[352224616,1739008241648,-500.0,0.00011232,2]
[352224617,1739008241659,-500.0,0.00011232,2]
[352224618,1739008241671,-4150.59,0.00011232,2]
[352224619,1739008241685,-500.0,0.00011232,2]
[352224620,1739008241700,-500.0,0.00011232,2]
[352224621,1739008241711,-500.0,0.00011232,2]
[352224622,1739008241722,-685.16,0.00011232,2]
[352224623,1739008241735,-500.0,0.00011232,2]
[352224624,1739008241747,-5647.62,0.00011232,2]
[352224625,1739008241759,-1207.49,0.00011232,2]
[352224626,1739008241771,-500.0,0.00011232,2]
[352224627,1739008241784,-500.0,0.00011232,2]
[352224628,1739008241796,-2102.51,0.00011232,2]
[352224629,1739008241807,-500.0,0.00011232,2]
[352224630,1739008241818,-500.0,0.00011232,2]
[352224631,1739008241830,-1676.9,0.00011232,2]
[352224632,1739008241841,-16657.69,0.00011232,2]
[352224633,1739008241852,-500.0,0.00011232,2]
[352224634,1739008241864,-1456.45,0.00011232,2]
[352224635,1739008241875,-500.0,0.00011232,2]
[352224636,1739008241886,-500.0,0.00011232,2]
[352224637,1739008241898,-500.0,0.00011232,2]
[352224638,1739008241909,-500.0,0.00011232,2]
[352224639,1739008241920,-49622.88,0.00011232,2]
[352224640,1739008241931,-202.2442338,0.00011232,2]
[352224641,1739008241943,-500.0,0.00011232,2]
[352224642,1739008241954,-2027.9,0.00011232,2]
[352224643,1739008241965,-500.0,0.00011232,2]
[352224644,1739008241977,-500.0,0.00011232,2]
[352224645,1739008241990,-500.0,0.00011232,2]
[352224646,1739008242002,-1454.71,0.00011232,2]
[352224647,1739008242014,-500.0,0.00011232,2]
[352224648,1739008242026,-500.0,0.00011232,2]
[352224649,1739008242039,-500.0,0.00011232,2]
[352224650,1739008242053,-2194.61,0.00011232,2]
[352224651,1739008242065,-500.0,0.00011232,2]
[352224652,1739008242077,-500.0,0.00011232,2]
[352224653,1739008242089,-500.0,0.00011232,2]
[352224654,1739008242099,-1459.27,0.00011232,2]
[352224655,1739008242110,-500.0,0.00011232,2]
[352224656,1739008242121,-500.0,0.00011232,2]
[352224657,1739008242132,-500.0,0.00011232,2]
[352224658,1739008242144,-500.0,0.00011232,2]
[352224659,1739008242155,-500.0,0.00011232,2]
[352224660,1739008242168,-968.03,0.00011232,2]
[352224661,1739008242181,-500.0,0.00011232,2]
[352224662,1739008242204,-500.0,0.00011232,2]
[352224663,1739008242223,-1278.14,0.00011232,2]
[352224664,1739008242239,-500.0,0.00011232,2]
[352224665,1739008242255,-500.0,0.00011232,2]
[352224666,1739008242271,-1960.89,0.00011232,2]
[352224667,1739008242286,-551.77,0.00011232,2]
[352224668,1739008242300,-537.32,0.00011232,2]
[352224669,1739008242313,-500.0,0.00011232,2]
[352224670,1739008242327,-500.0,0.00011232,2]
[352224671,1739008242341,-2537.01,0.00011232,2]
[352224672,1739008242354,-673.12,0.00011232,2]
[352224673,1739008242367,-9107.0,0.00011232,2]
[352224674,1739008242596,-500.0,0.00011232,2]
[352224675,1739008242606,-2937.07,0.00011232,2]
[352224676,1739008242615,-500.0,0.00011232,2]
[352224677,1739008242625,-500.0,0.00011232,2]
[352224678,1739008242635,-500.0,0.00011232,2]
[352224679,1739008242645,-3611.62,0.00011232,2]
[352224680,1739008242655,-500.0,0.00011232,2]
[352224681,1739008242664,-685.36,0.00011232,2]
[352224682,1739008242673,-1670.54,0.00011232,2]
[352224683,1739008242682,-500.0,0.00011232,2]
[352224684,1739008242697,-500.0,0.00011232,2]
[352224685,1739008242707,-500.0,0.00011232,2]
[352224686,1739008242717,-1038.43,0.00011232,2]
[352224687,1739008242726,-686.96,0.00011232,2]
[352224688,1739008242735,-500.0,0.00011232,2]
[352224689,1739008242745,-500.0,0.00011232,2]
[352224690,1739008242754,-500.0,0.00011232,2]
[352224691,1739008242763,-1911.51,0.00011232,2]
[352224692,1739008242772,-5231.18,0.00011232,2]
[352224693,1739008242782,-4458.27,0.00011232,2]
[352224694,1739008242791,-500.0,0.00011232,2]
[352224695,1739008242799,-500.0,0.00011232,2]
[352224696,1739008242809,-500.0,0.00011232,2]
[352224697,1739008242819,-902.36,0.00011232,2]
[352224698,1739008242828,-500.0,0.00011232,2]
[352224699,1739008242837,-500.0,0.00011232,2]
[352224700,1739008242847,-1512.53,0.00011232,2]
[352224701,1739008242856,-500.0,0.00011232,2]
[352224702,1739008242865,-500.0,0.00011232,2]
[352224703,1739008242874,-500.0,0.00011232,2]
[352224704,1739008242884,-173.19621,0.00011232,2]
[352224705,1739008242894,-500.0,0.00011232,2]
[352224706,1739008242903,-1842.68,0.00011232,2]
[352224707,1739008242912,-533.1,0.00011232,2]
[352224708,1739008242921,-500.0,0.00011232,2]
[352224709,1739008242931,-1326.97,0.00011232,2]
[352224710,1739008242942,-500.0,0.00011232,2]
[352224711,1739008242951,-722.25,0.00011232,2]
[352224712,1739008242961,-934.01,0.00011232,2]
[352224713,1739008242971,-500.0,0.00011232,2]
[352224714,1739008242983,-166.46426822,0.00011269,2]
[352224715,1739008242992,-1597.94,0.00011299,2]
[352224716,1739008243003,-1597.94,0.00011299,2]
[352224717,1739008243013,-1597.94,0.00011299,2]
[352224718,1739008243023,-1597.94,0.00011299,2]
[352224719,1739008243033,-1598.13372873,0.00011299,2]
[352224720,1739008243043,-151.0,0.000113,2]
[352224721,1739008243053,-151.0,0.000113,2]
[352224722,1739008243063,-151.0,0.000113,2]
[352224723,1739008243072,-151.0,0.000113,2]
[352224724,1739008243082,-151.0,0.000113,2]
[352224725,1739008243091,-500.0,0.00011343,2]
[352224727,1739008243100,-161.94062903,0.00011343,2]
[352224728,1739008243109,-500.0,0.00011343,2]
[352224731,1739008243119,-500.0,0.00011343,2]
[352224735,1739008243128,-500.0,0.00011343,2]
[352224737,1739008243137,-500.0,0.00011343,2]
[352224739,1739008243147,-500.0628284,0.00011343,2]
[352224741,1739008243156,-500.0,0.00011343,2]
[352224743,1739008243165,-161.44922237,0.00011343,2]
[352224745,1739008243174,-151.65794528,0.00011343,2]
[352224747,1739008243184,-523.53733128,0.00011343,2]
[352224749,1739008243194,-159.0485057,0.0001135,2]
[352224750,1739008243204,-500.0,0.00011352,2]
[352224752,1739008243213,-500.0,0.00011352,2]
[352224754,1739008243222,-500.0,0.00011366,2]
[352224756,1739008243232,-500.0,0.00011366,2]
[352224758,1739008243241,-501.66900525,0.00011366,2]
[352224761,1739008243250,-500.0,0.00011366,2]
[352224764,1739008243260,-500.0,0.00011367,2]
[352224767,1739008243269,-500.0,0.00011367,2]
[352224770,1739008243279,-385.91203686,0.00011367,2]
[352224773,1739008243289,-500.0,0.00011369,2]
[352224776,1739008243298,-500.0,0.00011369,2]
[352224779,1739008243307,-621.5,0.00011369,2]
[352224781,1739008243317,-500.0,0.00011369,2]
[352224783,1739008243327,-500.0,0.00011369,2]
[352224785,1739008243336,-402.32676961,0.00011369,2]
[352224787,1739008243345,-519.86851617,0.00011369,2]
[352224789,1739008243355,-626.7905281,0.00011369,2]
[352224791,1739008243364,-500.0,0.00011369,2]
[352224793,1739008243374,-500.0,0.00011369,2]
[352224795,1739008243394,-500.0,0.00011369,2]
[352224797,1739008243405,-500.0,0.00011369,2]
[352224799,1739008243414,-500.0,0.00011369,2]
[352224801,1739008243425,-500.0,0.00011369,2]
[352224803,1739008243435,-500.0,0.00011369,2]
[352224805,1739008243444,-500.0,0.00011369,2]
[352224807,1739008243453,-500.0,0.00011369,2]
[352224809,1739008243462,-500.0,0.00011369,2]
[352224811,1739008243472,-500.0,0.00011369,2]
[352224813,1739008243481,-500.0,0.00011369,2]
[352224815,1739008243493,-500.0,0.00011369,2]
[352224817,1739008243503,-500.0,0.00011369,2]
[352224819,1739008243513,-500.0,0.00011369,2]
[352224821,1739008243523,-500.0,0.00011369,2]
[352224823,1739008243534,-500.0,0.00011369,2]
[352224825,1739008243545,-508.44,0.00011369,2]
[352224827,1739008243554,-500.0,0.00011369,2]
[352224828,1739008243563,-500.0,0.00011369,2]
[352224829,1739008243572,-500.0,0.00011369,2]
[352224830,1739008243582,-500.0,0.00011369,2]
[352224833,1739008243591,-500.0,0.00011369,2]
[352224835,1739008243600,-500.0,0.00011369,2]
[352224837,1739008243609,-871.2,0.00011369,2]
[352224840,1739008243618,-500.0,0.00011369,2]
[352224842,1739008243628,-500.0,0.00011369,2]
[352224843,1739008243642,-366.21379889,0.00011369,2]
[352224844,1739008243652,-500.0,0.00011369,2]
[352224845,1739008243662,-500.0,0.00011369,2]
[352224846,1739008243671,-298.36,0.00011369,2]
[352224847,1739008243682,-713.53,0.00011369,2]
[352224848,1739008243698,-828.86,0.00011369,2]
[352224849,1739008243709,-609.74,0.00011369,2]
[352224850,1739008243718,-500.0,0.00011369,2]
[352224851,1739008243728,-500.0,0.00011369,2]
[352224852,1739008243737,-500.0,0.00011369,2]
[352224853,1739008243746,-500.0,0.00011369,2]
[352224854,1739008243756,-500.0,0.00011369,2]
[352224855,1739008243765,-500.0,0.00011369,2]
[352224856,1739008243775,-500.0,0.00011369,2]
[352224857,1739008243784,-500.0,0.00011369,2]
[352224858,1739008243794,-500.0,0.00011369,2]
[352224859,1739008243804,-500.0,0.00011369,2]
[352224860,1739008243813,-1113.51,0.00011369,2]
[352224861,1739008243823,-1455.41,0.00011369,2]
[352224862,1739008243833,-500.0,0.00011369,2]
[352224863,1739008243842,-425.23565614,0.00011369,2]
[352224864,1739008243852,-697.95,0.00011369,2]
[352224865,1739008243861,-1497.93,0.00011369,2]
[352224866,1739008243870,-500.0,0.00011369,2]
[352224867,1739008243879,-500.0,0.00011369,2]
[352224868,1739008243888,-500.0,0.00011369,2]
[352224869,1739008243897,-500.0,0.00011369,2]
[352224870,1739008243908,-747.14,0.00011369,2]
[352224871,1739008243918,-500.0,0.00011369,2]
[352224872,1739008243927,-500.0,0.00011369,2]
[352224873,1739008243937,-500.0,0.00011369,2]
[352224874,1739008243946,-500.0,0.00011369,2]
[352224875,1739008243955,-500.0,0.00011369,2]
[352224876,1739008243966,-500.0,0.00011369,2]
[352224877,1739008243975,-1703.07,0.00011369,2]
[352224878,1739008243984,-500.0,0.00011369,2]
[352224879,1739008243993,-500.0,0.00011369,2]
[352224880,1739008244002,-500.0,0.00011369,2]
[352224881,1739008244011,-1140.65,0.00011369,2]
[352224882,1739008244020,-500.0,0.00011369,2]
[352224883,1739008244029,-500.0,0.00011369,2]
[352224884,1739008244038,-500.0,0.00011369,2]
[352224885,1739008244047,-500.0,0.00011369,2]
[352224886,1739008244057,-500.0,0.00011369,2]
[352224887,1739008244066,-500.0,0.00011369,2]
[352224888,1739008244077,-500.0,0.00011369,2]
[352224889,1739008244087,-570.23,0.00011369,2]
[352224890,1739008244097,-500.0,0.00011369,2]
[352224891,1739008244108,-1845.77,0.00011369,2]
[352224892,1739008244117,-500.0,0.00011369,2]
[352224893,1739008244127,-731.19,0.00011369,2]
[352224894,1739008244136,-500.0,0.00011369,2]
[352224895,1739008244146,-776.22,0.00011369,2]
[352224896,1739008244156,-500.0,0.00011369,2]
[352224897,1739008244165,-701.7,0.00011369,2]
[352224898,1739008244174,-500.0,0.00011369,2]
[352224899,1739008244185,-2163.76,0.00011369,2]
[352224900,1739008244202,-500.0,0.00011369,2]
[352224901,1739008244221,-500.0,0.00011369,2]
[352224902,1739008244238,-545.76094174,0.00011369,2]
[352224903,1739008244254,-500.0,0.00011369,2]
[352224904,1739008244264,-1641.21,0.00011369,2]
[352224905,1739008244273,-500.0,0.00011369,2]
[352224906,1739008244282,-571.68,0.00011369,2]
[352224907,1739008244293,-500.0,0.00011369,2]
[352224908,1739008244302,-3235.64,0.00011369,2]
[352224909,1739008244311,-1371.9,0.00011369,2]
[352224910,1739008244321,-835.5,0.00011369,2]
[352224911,1739008244331,-500.0,0.00011369,2]
[352224912,1739008244340,-500.0,0.00011369,2]
[352224913,1739008244350,-3348.34,0.00011369,2]
[352224914,1739008244359,-500.0,0.00011369,2]
[352224915,1739008244369,-11312.21932286,0.00011369,2]
[352224916,1739008245292,-500.0,0.00010958,2]
[352224917,1739008245302,-586.26,0.00010958,2]
[352224918,1739008245312,-500.0,0.00010958,2]
[352224919,1739008245321,-509.64092162,0.00010958,2]
[352224920,1739008245331,-500.0,0.00011095,2]
[352224921,1739008245340,-500.0,0.00011095,2]
[352224922,1739008245350,-586.26,0.00011095,2]
[352224923,1739008245360,-500.0,0.00011095,2]
[352224924,1739008245369,-500.0,0.00011232,2]
[352224925,1739008245378,-500.0,0.00011232,2]
[352224926,1739008245387,-586.26,0.00011232,2]
[352224927,1739008245549,-630.0,0.00011232,2]
[352224928,1739008245559,-500.0,0.00011369,2]
[352224929,1739008245568,-3475.79,0.00011369,2]
[352224930,1739008245577,-782.47,0.00011369,2]
[352224931,1739008245587,-500.0,0.00011369,2]
[352224932,1739008245596,-500.0,0.00011369,2]
[352224933,1739008245605,-500.0,0.00011369,2]
[352224934,1739008245614,-1156.73,0.00011369,2]
[352224935,1739008245624,-500.0,0.00011369,2]
[352224936,1739008245633,-226.68405958,0.00011369,2]
[352224937,1739008245643,-500.0,0.00011369,2]
[352224938,1739008245653,-500.0,0.00011369,2]
[352224939,1739008245663,-500.0,0.00011369,2]
[352224940,1739008245672,-500.0,0.00011369,2]
[352224941,1739008245682,-500.0,0.00011369,2]
[352224942,1739008245694,-500.0,0.00011369,2]
[352224943,1739008245704,-1381.01,0.00011369,2]
[352224944,1739008245713,-500.0,0.00011369,2]
[352224945,1739008245723,-500.0,0.00011369,2]
[352224946,1739008245732,-500.0,0.00011369,2]
[352224947,1739008245741,-500.0,0.00011369,2]
[352224948,1739008245750,-500.0,0.00011369,2]
[352224949,1739008245759,-4150.59,0.00011369,2]
[352224950,1739008245768,-500.0,0.00011369,2]
[352224951,1739008245778,-500.0,0.00011369,2]
[352224952,1739008245787,-500.0,0.00011369,2]
[352224953,1739008245796,-685.16,0.00011369,2]
[352224954,1739008245806,-500.0,0.00011369,2]
[352224955,1739008245815,-5647.62,0.00011369,2]
[352224956,1739008245824,-1207.49,0.00011369,2]
[352224957,1739008245834,-500.0,0.00011369,2]
[352224958,1739008245843,-500.0,0.00011369,2]
[352224959,1739008245852,-2102.51,0.00011369,2]
[352224960,1739008245861,-500.0,0.00011369,2]
[352224961,1739008245871,-500.0,0.00011369,2]
[352224962,1739008245880,-1676.9,0.00011369,2]
[352224963,1739008245889,-16657.69,0.00011369,2]
[352224964,1739008245899,-500.0,0.00011369,2]
[352224965,1739008245908,-1456.45,0.00011369,2]
[352224966,1739008245917,-500.0,0.00011369,2]
[352224967,1739008245927,-500.0,0.00011369,2]
[352224968,1739008245936,-500.0,0.00011369,2]
[352224969,1739008245946,-500.0,0.00011369,2]
[352224970,1739008245956,-49622.88,0.00011369,2]
[352224971,1739008245965,-500.0,0.00011369,2]
[352224972,1739008245975,-2027.9,0.00011369,2]
[352224973,1739008245984,-500.0,0.00011369,2]
[352224974,1739008245993,-500.0,0.00011369,2]
[352224975,1739008246004,-500.0,0.00011369,2]
[352224976,1739008246013,-1454.71,0.00011369,2]
[352224977,1739008246022,-500.0,0.00011369,2]
[352224978,1739008246031,-500.0,0.00011369,2]
[352224979,1739008246041,-500.0,0.00011369,2]
[352224980,1739008246051,-2194.61,0.00011369,2]
[352224981,1739008246061,-500.0,0.00011369,2]
[352224982,1739008246071,-500.0,0.00011369,2]
[352224983,1739008246082,-500.0,0.00011369,2]
[352224984,1739008246092,-1459.27,0.00011369,2]
[352224985,1739008246102,-243.74158017,0.00011369,2]
[352224986,1739008246112,-500.0,0.00011369,2]
[352224987,1739008246122,-500.0,0.00011369,2]
[352224988,1739008246132,-500.0,0.00011369,2]
[352224990,1739008246141,-500.0,0.00011369,2]
[352224992,1739008246151,-968.03,0.00011369,2]
[352224994,1739008246160,-500.0,0.00011369,2]
[352224995,1739008246169,-500.0,0.00011369,2]
[352224996,1739008246179,-1278.14,0.00011369,2]
[352224997,1739008246188,-500.0,0.00011369,2]
[352224998,1739008246198,-1960.89,0.00011369,2]
[352224999,1739008246207,-500.0,0.00011369,2]
[352225000,1739008246218,-551.77,0.00011369,2]
[352225001,1739008246228,-537.32,0.00011369,2]
[352225002,1739008246237,-500.0,0.00011369,2]
[352225003,1739008246246,-500.0,0.00011369,2]
[352225004,1739008246255,-2537.01,0.00011369,2]
[352225005,1739008246264,-673.12,0.00011369,2]
[352225006,1739008246274,-9107.0,0.00011369,2]
[352225007,1739008246294,-500.0,0.00011369,2]
[352225008,1739008246304,-2937.07,0.00011369,2]
[352225009,1739008246315,-500.0,0.00011369,2]
[352225010,1739008246324,-500.0,0.00011369,2]
[352225011,1739008246334,-500.0,0.00011369,2]
[352225012,1739008246344,-3611.62,0.00011369,2]
[352225013,1739008246355,-500.0,0.00011369,2]
[352225014,1739008246365,-685.36,0.00011369,2]
[352225015,1739008246375,-1670.54,0.00011369,2]
[352225016,1739008246384,-500.0,0.00011369,2]
[352225017,1739008246395,-500.0,0.00011369,2]
[352225018,1739008246405,-500.0,0.00011369,2]
[352225019,1739008246416,-1038.43,0.00011369,2]
[352225020,1739008246428,-686.96,0.00011369,2]
[352225021,1739008246439,-500.0,0.00011369,2]
[352225022,1739008246449,-500.0,0.00011369,2]
[352225023,1739008246460,-500.0,0.00011369,2]
[352225024,1739008246471,-1911.51,0.00011369,2]
[352225025,1739008246482,-5231.18,0.00011369,2]
[352225026,1739008246492,-4458.27,0.00011369,2]
[352225027,1739008246502,-500.0,0.00011369,2]
[352225029,1739008246512,-500.0,0.00011369,2]
[352225030,1739008246522,-500.0,0.00011369,2]
[352225031,1739008246532,-902.36,0.00011369,2]
[352225032,1739008246542,-500.0,0.00011369,2]